bitfinex/quotes_BTCUSD_20241206
["timestamp","ask_amount","ask_price","bid_price","bid_amount"]
[1733507143654,0.10002951,100580.0,100570.0,0.0017284]
[1733507143840,0.10002951,100580.0,100570.0,0.00172833]
[1733507144686,0.15002951,100580.0,100570.0,0.00172833]
[1733507145827,0.05,100570.0,100550.0,1.2615]
[1733507146040,0.10002951,100560.0,100550.0,0.09981534]
[1733507146306,0.10002951,100560.0,100540.0,0.1289294]
[1733507146866,0.10002951,100560.0,100540.0,0.2482754]
[1733507147265,0.10002951,100560.0,100540.0,0.1289294]
[1733507147795,0.10002951,100550.0,100540.0,0.1289294]
[1733507148878,0.10002951,100550.0,100540.0,0.0017294]
[1733507149322,0.15002951,100550.0,100540.0,0.0017294]
[1733507150177,0.4152587,100550.0,100540.0,0.0017294]
[1733507150396,0.10002951,100550.0,100540.0,0.0017294]
[1733507150581,0.29893551,100550.0,100540.0,0.0017294]
[1733507150812,0.10002951,100550.0,100540.0,0.0017294]
[1733507151044,0.05,100520.0,100490.0,0.0821]
[1733507151260,0.10002951,100510.0,100490.0,0.09508306]
[1733507151726,0.10002951,100500.0,100490.0,0.09508306]
[1733507152137,0.15002951,100500.0,100490.0,0.01298306]
[1733507152309,0.15002951,100500.0,100480.0,0.0477306]
[1733507152310,0.10002951,100500.0,100480.0,0.0477306]
[1733507152507,0.10002951,100490.0,100480.0,0.0477306]
[1733507152711,0.10002951,100490.0,100480.0,0.0017306]
[1733507152712,0.15002951,100490.0,100480.0,0.0017306]
[1733507152986,0.05,100460.0,100450.0,0.119451]
[1733507153293,0.15002951,100460.0,100450.0,0.03846802]
[1733507153737,0.0488,100440.0,100420.0,0.119488]
[1733507153953,0.0488,100450.0,100430.0,0.26522919]
[1733507154145,0.10002951,100450.0,100440.0,5.44720319]
[1733507154362,4e-05,100460.0,100450.0,0.119462]
[1733507154489,0.15006951,100460.0,100440.0,5.130466]
[1733507154692,0.15006951,100460.0,100450.0,0.38468819]
[1733507154693,0.10002951,100460.0,100450.0,0.38468819]
[1733507154895,0.10002951,100460.0,100450.0,0.119454]
[1733507155316,0.04817875,100490.0,100470.0,0.119428]
[1733507155541,0.10002951,100480.0,100470.0,0.1313708]
[1733507155747,0.14820826,100480.0,100470.0,0.1619428]
[1733507155965,0.14820826,100480.0,100470.0,0.0119428]
[1733507156381,0.14820826,100480.0,100470.0,0.1313808]
[1733507156636,0.10002951,100480.0,100470.0,0.0119428]
[1733507157099,0.04817875,100460.0,100440.0,5.313467]
[1733507157304,0.14820826,100450.0,100440.0,3.2495]
[1733507157526,0.14820826,100450.0,100410.0,0.572103]
[1733507157527,0.04777875,100440.0,100410.0,0.572103]
[1733507157741,0.14780826,100430.0,100420.0,0.00403481]
[1733507158013,0.14780826,100430.0,100420.0,0.0066184]
[1733507158252,0.14780826,100430.0,100410.0,5.3441]
[1733507158473,0.14780826,100430.0,100420.0,0.12611701]
[1733507158707,0.14780826,100430.0,100420.0,0.119498]
[1733507158992,0.10002951,100430.0,100410.0,0.239002]
[1733507159199,0.14780826,100430.0,100420.0,0.12611701]
[1733507159416,0.04777875,100420.0,100400.0,2.058027]
[1733507159729,0.10002951,100410.0,100400.0,2.058026]
[1733507159941,0.04777875,100430.0,100420.0,0.119498]
[1733507160142,0.10002951,100430.0,100420.0,0.36825897]
[1733507160290,0.04777875,100450.0,100440.0,0.119466]
[1733507160498,0.10002951,100450.0,100440.0,0.40207857]
[1733507160754,0.10002951,100450.0,100440.0,0.1533176]
[1733507161139,0.14780826,100450.0,100440.0,0.1533176]
[1733507161328,0.14780826,100450.0,100440.0,0.0338516]
[1733507161329,0.10002951,100450.0,100440.0,0.0338516]
[1733507161551,0.04777875,100440.0,100430.0,0.15]
[1733507161765,0.14780826,100440.0,100420.0,0.099572]
[1733507162007,0.04777875,100440.0,100430.0,0.249571]
[1733507162210,0.04777875,100430.0,100420.0,0.099572]
[1733507162425,0.14780826,100430.0,100420.0,0.249581]
[1733507162599,0.14780826,100430.0,100420.0,0.15]
[1733507162856,0.14780826,100430.0,100410.0,0.099583]
[1733507162857,0.04777875,100420.0,100410.0,0.099583]
[1733507163059,0.04777875,100390.0,100370.0,0.00174]
[1733507163270,0.14780826,100380.0,100370.0,0.101364]
[1733507163472,0.14780826,100380.0,100370.0,0.2341218]
[1733507163932,0.04777875,100410.0,100390.0,0.099611]
[1733507164131,0.05,100430.0,100410.0,0.099591]
[1733507164132,0.04777875,100420.0,100410.0,0.099591]
[1733507164438,0.14780826,100420.0,100410.0,0.099591]
[1733507164975,0.04777875,100410.0,100400.0,0.10270356]
[1733507165185,0.14780826,100410.0,100400.0,0.11729101]
[1733507165391,0.14780826,100410.0,100400.0,0.10679101]
[1733507165833,0.10002951,100410.0,100400.0,0.01769801]
[1733507166070,0.15002951,100410.0,100390.0,0.00311056]
[1733507166293,0.15002951,100410.0,100380.0,0.199228]
[1733507166294,0.04777875,100390.0,100380.0,0.199228]
[1733507166515,0.10002951,100390.0,100380.0,0.00311056]
[1733507166729,0.14780826,100390.0,100370.0,0.20409956]
[1733507166950,0.04777875,100410.0,100390.0,0.099603]
[1733507167161,0.10002951,100400.0,100390.0,0.44797097]
[1733507167397,0.10002951,100400.0,100390.0,0.20729745]
[1733507167613,0.14780826,100400.0,100390.0,0.20232056]
[1733507168034,0.10002951,100400.0,100390.0,0.60108153]
[1733507168307,0.04777875,100420.0,100410.0,0.249591]
[1733507168543,0.31723797,100460.0,100420.0,0.249573]
[1733507168544,0.04777875,100440.0,100420.0,0.249573]
[1733507168750,0.10002951,100430.0,100420.0,0.099573]
[1733507169195,0.14780826,100430.0,100420.0,0.249573]
[1733507169411,0.14780826,100430.0,100420.0,0.28323109]
[1733507170378,0.21723797,100460.0,100450.0,0.099552]
[1733507170587,0.36504623,100460.0,100450.0,0.49831297]
[1733507170796,0.31726748,100460.0,100450.0,0.25266243]
[1733507171009,0.31726748,100460.0,100450.0,0.27294658]
[1733507171218,0.36504623,100460.0,100450.0,0.26694658]
[1733507171690,0.31726748,100460.0,100450.0,0.26694658]
[1733507172154,0.31726748,100460.0,100450.0,0.26383615]
[1733507172360,0.31726748,100460.0,100450.0,0.26694499]
[1733507172773,0.31726748,100460.0,100450.0,0.11694499]
[1733507172989,0.31726748,100460.0,100450.0,0.11383615]
[1733507173197,0.36504623,100460.0,100450.0,0.11983615]
[1733507174560,0.31696748,100460.0,100450.0,0.11983615]
[1733507174981,0.31783748,100460.0,100450.0,0.11983615]
[1733507175186,0.36561623,100460.0,100450.0,0.26983615]
[1733507175414,0.36561623,100460.0,100450.0,0.27294499]
[1733507175826,0.21780797,100460.0,100450.0,1.94544697]
[1733507176069,0.21780797,100460.0,100450.0,5.20199897]
[1733507176273,0.21780797,100460.0,100450.0,5.24829897]
[1733507176487,0.21780797,100460.0,100450.0,5.24519013]
[1733507176718,0.04777875,100450.0,100440.0,0.199106]
[1733507176921,0.10002951,100450.0,100440.0,0.10266179]
[1733507178223,0.10002951,100450.0,100440.0,0.10266231]
[1733507178439,0.10002951,100450.0,100440.0,0.10266221]
[1733507178887,0.10002951,100450.0,100440.0,0.03310921]
[1733507179107,0.20002951,100450.0,100440.0,0.03310921]
[1733507179329,0.15002951,100450.0,100440.0,0.03310921]
[1733507179548,0.15002951,100450.0,100440.0,0.04637723]
[1733507179786,0.15002951,100450.0,100440.0,0.03310921]
[1733507180714,0.15002951,100450.0,100440.0,0.03]
[1733507181625,0.40037789,100450.0,100440.0,0.00311]
[1733507181841,0.29913351,100450.0,100440.0,0.00311]
[1733507182061,0.29913351,100450.0,100400.0,0.200934]
[1733507182062,0.1,100420.0,100400.0,0.00174]
[1733507182318,0.10002951,100410.0,100400.0,0.00174]
[1733507182521,0.10002951,100410.0,100400.0,0.00671749]
[1733507182748,0.04777875,100400.0,100390.0,0.19921]
[1733507182983,0.04777875,100390.0,100340.0,0.05]
[1733507183226,0.3,100380.0,100290.0,0.92768692]
[1733507183454,0.3,100380.0,100270.0,0.00519599]
[1733507183455,0.05,100290.0,100270.0,0.00519599]
[1733507183686,0.01887354,100300.0,100270.0,4.92573]
[1733507184013,0.05,100320.0,100280.0,0.00099716]
[1733507184272,0.02034533,100340.0,100280.0,0.00099716]
[1733507184487,0.00075493,100330.0,100280.0,0.05099702]
[1733507184718,0.08629825,100310.0,100300.0,0.0997]
[1733507184940,0.08629825,100310.0,100290.0,0.05]
[1733507184941,0.08641512,100310.0,100290.0,0.099703]
[1733507185165,0.08625414,100300.0,100290.0,0.149703]
[1733507185421,0.08629086,100330.0,100310.0,0.149688]
[1733507185636,0.278119,100400.0,100340.0,0.149661]
[1733507185859,0.3329218,100430.0,100370.0,0.05]
[1733507186088,0.00386729,100420.0,100380.0,0.00099598]
[1733507186321,0.10002951,100390.0,100370.0,0.06]
[1733507186558,0.10002951,100380.0,100370.0,0.01]
[1733507186790,0.10002951,100380.0,100340.0,0.2798]
[1733507186791,0.10002951,100380.0,100340.0,0.0798]
[1733507187041,0.10002951,100380.0,100320.0,0.149674]
[1733507187042,0.10002951,100350.0,100320.0,0.149674]
[1733507187268,0.10002951,100350.0,100330.0,0.00099651]
[1733507187528,0.10002951,100350.0,100330.0,0.10066751]
[1733507187735,0.10002951,100350.0,100300.0,0.225799]
[1733507187736,0.35003608,100340.0,100280.0,0.05]
[1733507187975,0.10002951,100320.0,100310.0,0.09969]
[1733507188190,0.10002951,100320.0,100300.0,0.099693]
[1733507188410,0.10002951,100320.0,100300.0,0.00074048]
[1733507188669,0.10002951,100310.0,100290.0,0.099703]
[1733507188917,0.10002951,100310.0,100290.0,0.22008945]
[1733507189151,0.10002951,100300.0,100290.0,0.0199417]
[1733507189369,0.44933006,100340.0,100310.0,0.099689]
[1733507189370,0.10002951,100320.0,100310.0,0.099689]
[1733507189591,0.10002951,100320.0,100310.0,0.149689]
[1733507189805,0.10002951,100320.0,100310.0,0.05]
[1733507190025,0.10002951,100320.0,100310.0,0.01060596]
[1733507190276,0.10002951,100320.0,100290.0,0.149702]
[1733507190523,0.10002951,100300.0,100280.0,0.099712]
[1733507190734,0.10002951,100300.0,100280.0,0.249431]
[1733507190966,0.10002951,100290.0,100270.0,0.1514632]
[1733507191209,0.10002951,100290.0,100270.0,0.1514622]
[1733507191496,0.10002951,100290.0,100270.0,0.15220341]
[1733507191699,0.00124633,100320.0,100270.0,0.15220341]
[1733507191700,0.398635,100350.0,100280.0,0.10074122]
[1733507191921,0.10002951,100310.0,100290.0,0.099701]
[1733507192147,0.10002951,100300.0,100280.0,0.099714]
[1733507192384,0.10002951,100300.0,100290.0,0.09971]
[1733507192882,0.10002951,100300.0,100290.0,0.14971]
[1733507193114,0.10002951,100300.0,100290.0,0.39847097]
[1733507193598,0.69541097,100370.0,100320.0,0.199358]
[1733507193857,0.10002951,100330.0,100320.0,0.11508034]
[1733507194332,0.10002951,100330.0,100320.0,0.01540234]
[1733507195504,0.10002951,100330.0,100320.0,0.11508334]
[1733507195725,0.10002951,100330.0,100290.0,0.149703]
[1733507195726,0.10002951,100330.0,100290.0,0.2]
[1733507195955,0.10002951,100330.0,100300.0,0.0007405]
[1733507195956,0.10002951,100320.0,100300.0,0.0007405]
[1733507196179,0.10002951,100320.0,100290.0,0.299114]
[1733507196416,0.10002951,100310.0,100280.0,0.199429]
[1733507196651,0.10002951,100310.0,100290.0,0.099709]
[1733507196884,0.10002951,100300.0,100280.0,0.199427]
[1733507197114,0.10002951,100290.0,100270.0,0.1514622]
[1733507197338,0.10002951,100290.0,100280.0,0.10046131]
[1733507197589,0.24876097,100340.0,100310.0,0.09969]
[1733507197823,0.10002951,100320.0,100290.0,0.099705]
[1733507198042,0.10002951,100300.0,100290.0,0.2001495]
[1733507198311,0.10002951,100300.0,100290.0,0.099704]
[1733507198540,0.10002951,100300.0,100280.0,0.0017416]
[1733507198754,0.10002951,100290.0,100280.0,0.00248268]
[1733507198975,0.10002951,100290.0,100280.0,0.0017416]
[1733507199664,0.10127609,100290.0,100280.0,0.0017416]
[1733507200115,0.10127609,100290.0,100270.0,0.0017392]
[1733507200357,0.10002951,100280.0,100270.0,0.0017392]
[1733507200806,0.10002951,100280.0,100270.0,0.05248086]
[1733507201020,0.10002951,100280.0,100270.0,0.1014692]
[1733507201237,0.10002951,100280.0,100270.0,0.0987692]
[1733507201498,0.10002951,100280.0,100260.0,0.099732]
[1733507201743,0.10002951,100270.0,100260.0,0.093732]
[1733507201946,0.10002951,100270.0,100260.0,0.19447359]
[1733507202381,0.0008708,100330.0,100300.0,0.0997]
[1733507202604,0.10002951,100320.0,100300.0,0.06571043]
[1733507202834,0.10002951,100320.0,100300.0,0.21509743]
[1733507203092,0.10002951,100320.0,100300.0,0.26509743]
[1733507203324,0.10002951,100320.0,100310.0,0.10043051]
[1733507203554,0.10002951,100320.0,100310.0,0.09969]
[1733507203772,0.10002951,100320.0,100310.0,0.11600811]
[1733507204437,0.10002951,100320.0,100310.0,0.11526766]
[1733507204655,0.10002951,100320.0,100310.0,0.21600809]
[1733507204860,0.10002951,100320.0,100310.0,0.21526766]
[1733507205075,0.10002951,100320.0,100310.0,0.21246766]
[1733507205746,0.0008708,100330.0,100320.0,0.1]
[1733507205971,0.10090031,100330.0,100320.0,0.21539076]
[1733507206203,0.0008708,100330.0,100320.0,0.61341197]
[1733507206428,0.10090031,100330.0,100320.0,0.364651]
[1733507206697,0.0008708,100330.0,100320.0,2.408151]
[1733507206880,0.0008708,100330.0,100320.0,2.459651]
[1733507207353,0.0008708,100330.0,100320.0,2.408151]
[1733507207574,0.10090031,100330.0,100320.0,2.408151]
[1733507208011,0.10090031,100330.0,100320.0,2.356651]
[1733507208234,0.10090031,100330.0,100320.0,0.114651]
[1733507209134,0.10090031,100330.0,100320.0,0.01497]
[1733507209388,0.10090031,100330.0,100320.0,0.114651]
[1733507210061,0.10090031,100330.0,100320.0,0.21539126]
[1733507210295,0.10090031,100330.0,100320.0,0.46341197]
[1733507210553,0.0008708,100330.0,100320.0,0.61341197]
[1733507212334,0.10090031,100330.0,100320.0,0.214651]
[1733507213265,0.10090031,100330.0,100320.0,0.164651]
[1733507213472,0.10090031,100330.0,100320.0,0.61415201]
[1733507213696,0.10090031,100330.0,100320.0,0.41341197]
[1733507213911,0.10090031,100330.0,100320.0,0.164651]
[1733507214622,0.10090031,100330.0,100320.0,0.114651]
[1733507214849,0.10090031,100330.0,100320.0,0.144651]
[1733507215296,0.10090031,100330.0,100320.0,0.194651]
[1733507215723,0.10090031,100330.0,100320.0,0.44341197]
[1733507215943,0.10090031,100330.0,100320.0,0.64341197]
[1733507217375,0.277716,100400.0,100350.0,0.199287]
[1733507217584,0.10002951,100370.0,100360.0,0.099636]
[1733507218297,0.10002951,100370.0,100360.0,0.39839697]
[1733507218509,0.10002951,100370.0,100360.0,0.34839697]
[1733507218951,0.10002951,100370.0,100360.0,0.099636]
[1733507220148,0.10002951,100370.0,100360.0,0.59913619]
[1733507220365,0.10002951,100370.0,100360.0,0.61336697]
[1733507221023,0.10090031,100370.0,100360.0,0.61336697]
[1733507221462,0.0008708,100370.0,100360.0,0.61336697]
[1733507223032,0.0008721,100430.0,100390.0,0.29876097]
[1733507223297,0.10002951,100420.0,100410.0,0.099584]
[1733507223523,0.10002951,100420.0,100400.0,0.29879]
[1733507223771,0.10002951,100420.0,100410.0,0.099591]
[1733507224004,0.10002951,100420.0,100410.0,0.10032918]
[1733507224225,0.10002951,100420.0,100410.0,0.099591]
[1733507224491,0.10002951,100420.0,100410.0,0.16529903]
[1733507224981,0.10002951,100420.0,100410.0,0.61406]
[1733507225201,0.10002951,100420.0,100410.0,0.61332197]
[1733507226117,0.0008721,100430.0,100420.0,0.25]
[1733507226341,0.10090161,100430.0,100420.0,0.59834197]
[1733507226562,0.10090161,100430.0,100420.0,0.61304883]
[1733507227281,0.0008721,100430.0,100420.0,0.61304883]
[1733507228640,0.0007721,100430.0,100420.0,0.61304883]
[1733507229087,0.0007721,100430.0,100420.0,0.64304883]
[1733507229980,0.0007721,100430.0,100420.0,0.74307834]
[1733507230196,0.0007721,100430.0,100420.0,0.97723383]
[1733507230440,0.18996526,100440.0,100430.0,0.05]
[1733507230645,0.00087,100460.0,100450.0,0.25]
[1733507230940,0.00087,100460.0,100450.0,0.68186097]
[1733507231219,0.0008721,100530.0,100510.0,0.198977]
[1733507231476,0.10002951,100520.0,100490.0,0.05]
[1733507231700,0.10002951,100500.0,100480.0,0.05]
[1733507231952,0.10002951,100490.0,100480.0,0.099522]
[1733507232180,0.10002951,100490.0,100470.0,0.349523]
[1733507232370,0.10002951,100490.0,100480.0,0.099522]
[1733507232627,0.10002951,100490.0,100480.0,0.10025833]
[1733507232852,0.0008721,100530.0,100500.0,0.099496]
[1733507233084,0.10002951,100510.0,100480.0,0.39827797]
[1733507233302,0.20107077,100530.0,100470.0,0.39905]
[1733507233303,0.10002951,100490.0,100470.0,0.39905]
[1733507233559,0.10002951,100490.0,100470.0,0.448575]
[1733507233777,0.10002951,100490.0,100480.0,0.099522]
[1733507234222,0.10002951,100490.0,100470.0,0.393055]
[1733507234443,0.199005,100500.0,100480.0,0.03]
[1733507234665,0.29905351,100490.0,100480.0,0.03]
[1733507234917,0.29905351,100490.0,100450.0,0.249102]
[1733507234918,0.10002951,100490.0,100450.0,0.249102]
[1733507235139,0.10002951,100470.0,100460.0,0.149542]
[1733507235357,0.10002951,100470.0,100460.0,0.44830297]
[1733507236044,0.0008721,100530.0,100470.0,0.149522]
[1733507236287,0.10002951,100480.0,100460.0,0.099535]
[1733507236736,0.10002951,100480.0,100460.0,0.199077]
[1733507236961,0.10127357,100470.0,100440.0,0.05]
[1733507237185,0.10002951,100450.0,100430.0,0.099565]
[1733507237455,0.10002951,100450.0,100430.0,0.29986739]
[1733507237700,0.10002951,100450.0,100430.0,0.20030139]
[1733507237930,0.10002951,100450.0,100430.0,0.249128]
[1733507238159,0.10002951,100450.0,100440.0,0.20029839]
[1733507238369,0.10002951,100450.0,100440.0,0.199561]
[1733507238625,0.10002951,100450.0,100440.0,0.44832197]
[1733507238846,0.10002951,100450.0,100440.0,0.349561]
[1733507239331,0.24876097,100510.0,100470.0,0.199525]
[1733507239551,0.10002951,100490.0,100470.0,0.299052]
[1733507239780,0.10002951,100490.0,100480.0,0.099522]
[1733507240497,0.10002951,100490.0,100480.0,0.20025833]
[1733507240731,0.10002951,100490.0,100480.0,0.349522]
[1733507241267,0.00211572,100530.0,100510.0,0.099492]
[1733507241367,0.00211572,100530.0,100520.0,0.099482]
[1733507241368,0.0008721,100530.0,100520.0,0.099482]
[1733507241599,0.10090161,100530.0,100510.0,0.149484]
[1733507241833,0.10002951,100520.0,100510.0,0.2497044]
[1733507242075,0.10002951,100520.0,100510.0,0.248969]
[1733507242527,0.09998951,100520.0,100510.0,0.298969]
[1733507242772,0.09998951,100520.0,100510.0,0.448969]
[1733507242992,0.0008721,100530.0,100520.0,0.199482]
[1733507243227,0.0008721,100530.0,100520.0,0.149482]
[1733507243228,0.10090161,100530.0,100520.0,0.149482]
[1733507243453,0.10090161,100530.0,100520.0,0.20021715]
[1733507243717,0.10090161,100530.0,100520.0,0.199482]
[1733507243960,0.0008721,100540.0,100520.0,0.44951151]
[1733507244189,0.0008721,100540.0,100530.0,0.59896743]
[1733507244409,0.0008721,100540.0,100530.0,0.59823297]
[1733507245554,0.10090161,100540.0,100530.0,0.199472]
[1733507245777,0.10090161,100540.0,100520.0,0.378427]
[1733507245994,0.10090161,100540.0,100530.0,0.20020702]
[1733507246225,0.10090161,100540.0,100530.0,0.199472]
[1733507246902,0.0008721,100540.0,100530.0,0.59823297]
[1733507247114,0.0008721,100540.0,100530.0,0.349472]
[1733507247551,0.0008721,100540.0,100530.0,0.322472]
[1733507247770,0.0008721,100540.0,100530.0,0.349472]
[1733507247984,0.0008713,100560.0,100540.0,0.05]
[1733507248225,0.0008713,100560.0,100550.0,0.20018688]
[1733507248457,0.03365546,100600.0,100570.0,0.099433]
[1733507248700,0.10002951,100590.0,100570.0,0.099433]
[1733507249181,0.10002951,100590.0,100570.0,0.149433]
[1733507249885,0.10002951,100590.0,100570.0,0.099433]
[1733507250137,0.10002951,100590.0,100580.0,0.05073386]
[1733507250356,0.10002951,100590.0,100580.0,0.149423]
[1733507251541,0.10002951,100590.0,100560.0,0.1]
[1733507251775,0.10002951,100590.0,100570.0,0.05]
[1733507252213,0.10002951,100580.0,100550.0,0.448894]
[1733507252437,0.10002951,100580.0,100560.0,0.05]
[1733507252665,0.10002951,100580.0,100560.0,0.05073411]
[1733507253155,0.10002951,100580.0,100560.0,0.05]
[1733507253371,0.10002951,100580.0,100560.0,0.05073408]
[1733507253627,0.10127228,100570.0,100530.0,5.011]
[1733507253892,0.20012477,100570.0,100540.0,0.05]
[1733507254167,0.20012477,100570.0,100540.0,0.05073495]
[1733507254168,0.10002951,100550.0,100540.0,0.05073495]
[1733507254400,0.10002951,100550.0,100530.0,0.03]
[1733507254622,0.10002951,100540.0,100530.0,0.03]
[1733507254859,0.30019783,100540.0,100530.0,0.03]
[1733507255075,0.54771548,100540.0,100530.0,0.03]
[1733507257345,0.10002951,100540.0,100530.0,0.03]
[1733507258958,0.29895451,100540.0,100530.0,0.03]
[1733507259183,0.54771548,100540.0,100530.0,0.03]
[1733507259629,0.34879048,100540.0,100530.0,0.03]
[1733507259843,0.10002951,100540.0,100530.0,0.03]
[1733507260816,0.10002951,100540.0,100530.0,0.229472]
[1733507261260,0.10002951,100540.0,100530.0,0.379472]
[1733507262834,0.10002951,100540.0,100530.0,0.229472]
[1733507263273,0.10002951,100540.0,100530.0,0.03]
[1733507263714,0.10127293,100540.0,100530.0,0.03]
[1733507265085,0.10127293,100540.0,100530.0,0.024]
[1733507265543,0.10002951,100540.0,100530.0,0.024]
[1733507267408,0.10002951,100540.0,100530.0,0.37420723]
[1733507267626,0.00439884,100580.0,100560.0,0.099436]
[1733507267845,0.1031356,100570.0,100560.0,0.149436]
[1733507268068,0.10002951,100570.0,100560.0,0.149436]
[1733507268364,0.10002951,100570.0,100560.0,0.199436]
[1733507269292,0.10002951,100570.0,100560.0,0.149436]
[1733507269517,0.10002951,100570.0,100560.0,0.05]
[1733507269750,0.10002951,100570.0,100560.0,0.149443]
[1733507269968,0.10002951,100570.0,100550.0,0.248892]
[1733507270192,0.10002951,100570.0,100550.0,0.248894]
[1733507270416,0.10002951,100570.0,100560.0,0.099443]
[1733507270640,0.10002951,100570.0,100550.0,0.248893]
[1733507271076,0.10002951,100570.0,100550.0,0.198893]
[1733507271293,0.10002951,100570.0,100550.0,0.248894]
[1733507271514,0.10002951,100570.0,100550.0,0.348342]
[1733507271730,0.10002951,100570.0,100560.0,0.099443]
[1733507272209,0.0008694,100580.0,100570.0,0.099433]
[1733507272449,0.10089891,100580.0,100570.0,0.199433]
[1733507273143,0.0008694,100580.0,100570.0,0.428433]
[1733507273564,0.10089891,100580.0,100570.0,0.099433]
[1733507273809,0.10089891,100580.0,100570.0,0.199433]
[1733507274008,0.0008694,100580.0,100570.0,0.349433]
[1733507275095,0.0095646,100600.0,100590.0,0.199413]
[1733507275306,0.10959411,100600.0,100590.0,0.199413]
[1733507275737,0.10959411,100600.0,100590.0,0.149413]
[1733507276007,0.10959411,100600.0,100590.0,0.2001465]
[1733507276219,0.0095646,100600.0,100590.0,0.349413]
[1733507276852,0.0095646,100600.0,100590.0,0.64942927]
[1733507277553,0.0095646,100600.0,100590.0,0.4779914]
[1733507278000,0.0095646,100600.0,100590.0,0.64942927]
[1733507278256,0.10959411,100600.0,100590.0,0.59942927]
[1733507278473,0.10959411,100600.0,100590.0,0.149413]
[1733507278690,0.10959411,100600.0,100590.0,0.199413]
[1733507279361,0.10959411,100600.0,100580.0,4.978]
[1733507279620,0.10959411,100600.0,100570.0,0.05]
[1733507279883,0.1108368,100600.0,100570.0,0.149432]
[1733507280120,0.1108368,100600.0,100580.0,0.20015594]
[1733507280121,0.10002951,100590.0,100580.0,0.20015594]
[1733507280350,0.10002951,100590.0,100580.0,0.05]
[1733507280583,0.10002951,100590.0,100580.0,0.199423]
[1733507281485,0.10002951,100590.0,100580.0,0.72666216]
[1733507281940,0.10002951,100590.0,100580.0,1.11209672]
[1733507282895,0.0095646,100600.0,100590.0,0.1]
[1733507283120,0.0095646,100600.0,100590.0,0.62797239]
[1733507283361,0.0095646,100600.0,100590.0,0.72665216]
[1733507283590,0.0095646,100600.0,100590.0,0.89795641]
[1733507284085,0.0095646,100600.0,100590.0,1.11208672]
[1733507284293,0.0095646,100600.0,100590.0,0.89795641]
[1733507284515,0.0095646,100600.0,100590.0,1.11208672]
[1733507285410,0.0095646,100600.0,100590.0,0.98360853]
[1733507285626,0.0095646,100600.0,100590.0,1.06160853]
[1733507285874,0.0095646,100600.0,100590.0,1.05615986]
[1733507286111,0.0095646,100600.0,100590.0,1.1789032]
[1733507286362,0.0052737,100600.0,100590.0,1.2285032]
[1733507286614,1e-06,100620.0,100610.0,0.123]
[1733507286851,1e-06,100620.0,100610.0,6.09245573]
[1733507287072,1e-06,100620.0,100610.0,6.2142193]
[1733507287330,0.0008716,100640.0,100630.0,0.05]
[1733507287545,0.0008716,100640.0,100630.0,0.74912]
[1733507287771,0.0008716,100640.0,100630.0,1.21925599]
[1733507287990,0.0008716,100640.0,100630.0,1.26745599]
[1733507288210,0.0008716,100640.0,100630.0,0.78538186]
[1733507289115,0.0008716,100640.0,100630.0,1.37511161]
[1733507289336,2e-07,100650.0,100640.0,0.372364]
[1733507289595,2e-07,100650.0,100640.0,6.18238165]
[1733507289844,2e-07,100650.0,100640.0,6.24484827]
[1733507290105,2e-07,100650.0,100640.0,6.27642048]
[1733507290349,2e-07,100650.0,100640.0,6.11659819]
[1733507290565,2e-07,100650.0,100640.0,6.07717029]
[1733507290790,2e-07,100650.0,100640.0,6.31289329]
[1733507291031,2e-07,100650.0,100640.0,5.95813956]
[1733507291254,0.00211138,100690.0,100640.0,5.95813956]
[1733507291255,0.00087,100690.0,100680.0,0.149324]
[1733507291714,0.00087,100690.0,100680.0,0.3500552]
[1733507291715,0.10089951,100690.0,100680.0,0.3500552]
[1733507291719,0.10089951,100690.0,100680.0,0.2000552]
[1733507291953,0.00087,100690.0,100680.0,0.59808497]
[1733507295427,0.00087,100690.0,100680.0,0.60818201]
[1733507296098,0.00087,100690.0,100680.0,0.60218201]
[1733507296340,0.00087,100690.0,100680.0,0.35342104]
[1733507296815,0.10089951,100690.0,100680.0,0.06009704]
[1733507297293,0.10089951,100690.0,100680.0,0.06082839]
[1733507297540,0.10089951,100690.0,100680.0,0.15942104]
[1733507297762,0.10089951,100690.0,100670.0,0.149326]
[1733507298011,0.00087,100690.0,100680.0,0.10073134]
[1733507298238,0.10089951,100690.0,100680.0,0.20005534]
[1733507298477,0.10089951,100690.0,100680.0,0.199324]
[1733507298692,0.10089951,100690.0,100680.0,0.149324]
[1733507298913,0.10089951,100690.0,100680.0,0.20005518]
[1733507299128,0.10089951,100690.0,100680.0,0.199324]
[1733507300498,0.10089951,100690.0,100680.0,0.05]
[1733507300751,0.10085951,100690.0,100680.0,0.05]
[1733507300944,0.10085951,100690.0,100680.0,0.149324]
[1733507301152,0.10085951,100690.0,100680.0,0.05]
[1733507301590,0.10085951,100690.0,100680.0,0.149324]
[1733507301800,0.10085951,100690.0,100680.0,0.15005531]
[1733507302431,0.10085951,100690.0,100680.0,0.149324]
[1733507302642,0.10085951,100690.0,100680.0,0.05]
[1733507303330,0.10085951,100690.0,100660.0,0.1]
[1733507303561,0.00083,100690.0,100680.0,0.0517352]
[1733507303795,0.10085951,100690.0,100680.0,0.2010592]
[1733507304255,0.10085951,100690.0,100680.0,0.59982017]
[1733507304256,0.00083,100690.0,100680.0,0.59982017]
[1733507304501,0.00083,100690.0,100680.0,1.01728114]
[1733507304744,1e-06,100690.0,100680.0,1.15443014]
[1733507304962,0.0160832,100700.0,100690.0,0.44349889]
[1733507305180,0.0208696,100710.0,100700.0,0.3410392]
[1733507305436,0.0208696,100710.0,100700.0,0.79562968]
[1733507305903,0.0208696,100710.0,100700.0,0.72811337]
[1733507306563,0.0208696,100710.0,100700.0,0.79562968]
[1733507306779,0.0208696,100710.0,100700.0,0.82447246]
[1733507307022,0.0208696,100710.0,100700.0,0.79562968]
[1733507307311,0.0208696,100710.0,100700.0,0.69560017]
[1733507307760,0.12089911,100710.0,100700.0,0.2417352]
[1733507308005,0.0208696,100710.0,100700.0,0.58980017]
[1733507308687,0.0208696,100710.0,100700.0,0.70001532]
[1733507308898,0.0208696,100710.0,100700.0,0.75001532]
[1733507309111,0.0208696,100710.0,100700.0,1.47620732]
[1733507309358,0.0208696,100710.0,100700.0,1.34275432]
[1733507309574,0.0208696,100710.0,100700.0,1.26711932]
[1733507309801,0.01405649,100710.0,100700.0,6.30879406]
[1733507310012,0.01405649,100710.0,100700.0,5.94026501]
[1733507310264,2.2e-07,100720.0,100710.0,0.3643352]
[1733507310485,0.00057774,100720.0,100710.0,0.81242068]
[1733507310702,0.00057774,100720.0,100710.0,0.84187037]
[1733507311388,0.02130752,100730.0,100720.0,0.3147352]
[1733507311643,0.02130752,100730.0,100720.0,0.79062045]